bitfinex/quotes_SOLUSD_20240612
["timestamp","ask_amount","ask_price","bid_price","bid_amount"]
[1718200016236,2.3105,160.14,160.08,2.3112]
[1718200016840,2.3105,160.14,160.06,20.0]
[1718200016841,2.4804,160.15,160.09,2.311]
[1718200017146,2.4804,160.15,160.1,2.311]
[1718200017147,0.17,160.15,160.1,2.311]
[1718200017346,0.34,160.15,160.08,4.6225]
[1718200017550,0.34,160.15,160.1,2.3109]
[1718200018056,0.34,160.15,160.09,2.3111]
[1718200018361,2.3104,160.15,160.09,2.3111]
[1718200018547,0.34,160.14,160.07,2.3113]
[1718200018849,2.3107,160.12,160.06,2.3115]
[1718200019154,0.34,160.13,160.06,2.3115]
[1718200019334,0.17,160.11,160.02,15.4761]
[1718200019652,2.4809,160.11,160.06,2.3116]
[1718200019829,0.34,160.12,160.03,4.6239]
[1718200020032,0.34,160.11,160.05,2.3117]
[1718200020346,2.3109,160.11,160.06,2.3115]
[1718200020657,2.4807,160.13,160.07,2.3114]
[1718200021033,2.3107,160.12,160.07,2.3114]
[1718200021261,2.3107,160.12,160.06,2.3115]
[1718200021553,2.3107,160.12,160.04,4.6238]
[1718200021554,120.0,160.19,160.05,11.5585]
[1718200021761,4.6202,160.17,160.09,2.3111]
[1718200021939,24.6202,160.17,160.06,11.5578]
[1718200022130,2.3103,160.15,160.09,2.311]
[1718200022332,2.3104,160.14,160.09,2.311]
[1718200022634,2.3103,160.15,160.09,2.311]
[1718200023041,2.3103,160.15,160.1,2.311]
[1718200023245,14.0277,160.2,160.12,2.3106]
[1718200023466,2.3099,160.18,160.12,2.3106]
[1718200023776,14.0277,160.2,160.08,32.1834]
[1718200023777,2.3102,160.16,160.11,2.3108]
[1718200023934,6.9294,160.19,160.09,2.3111]
[1718200024134,2.3106,160.14,160.08,16.0042]
[1718200024361,100.0,160.18,160.03,4.624]
[1718200024563,2.3107,160.12,160.04,16.093]
[1718200024731,2.3107,160.12,160.05,20.0]
[1718200025036,2.4806,160.13,160.05,20.0]
[1718200025239,2.3103,160.16,160.1,2.3109]
[1718200025444,0.17,160.13,160.04,18.4048]
[1718200025651,0.51,160.13,160.05,2.3117]
[1718200025949,2.3109,160.11,160.05,2.3117]
[1718200026153,0.34,160.1,160.05,2.3117]
[1718200026566,0.34,160.1,160.06,2.3116]
[1718200027069,2.651,160.1,160.05,2.3117]
[1718200027283,2.31,160.17,160.02,6.2277]
[1718200027440,20.0,160.19,160.04,0.17]
[1718200027645,120.0,160.19,160.08,20.8111]
[1718200027877,2.3104,160.15,160.06,13.8691]
[1718200028179,2.3102,160.16,160.11,2.3108]
[1718200028338,136.1686,160.19,160.09,4.6223]
[1718200028339,20.0,160.19,160.09,4.6223]
[1718200028539,2.3101,160.17,160.11,2.3108]
[1718200028763,0.17,160.16,160.11,2.3108]
[1718200028965,0.17,160.16,160.12,2.3107]
[1718200029152,100.0,160.15,160.04,9.2474]
[1718200029355,2.3107,160.12,160.04,4.6238]
[1718200029571,0.17,160.11,160.04,4.6238]
[1718200029772,2.4809,160.11,160.06,2.3115]
[1718200030151,0.17,160.11,160.04,2.3118]
[1718200030350,2.3113,160.08,160.03,2.3119]
[1718200030550,0.17,160.09,160.02,16.1886]
[1718200030551,0.34,160.09,160.02,16.1886]
[1718200030864,0.17,160.08,160.02,18.5007]
[1718200031053,2.6514,160.08,160.02,18.5007]
[1718200031258,2.6514,160.08,160.03,2.312]
[1718200031470,2.4815,160.07,160.02,2.3121]
[1718200031680,2.6516,160.06,159.98,22.503]
[1718200031856,2.4816,160.06,160.0,2.3124]
[1718200032257,2.4817,160.05,159.99,2.3125]
[1718200032457,2.4817,160.05,160.0,2.3124]
[1718200032458,0.17,160.04,160.0,2.3124]
[1718200032660,0.51,160.06,160.02,2.3121]
[1718200033361,2.8216,160.06,160.0,2.3123]
[1718200033561,2.3117,160.05,160.0,2.3123]
[1718200033771,2.8216,160.06,160.0,2.3123]
[1718200033974,2.8216,160.06,159.98,22.503]
[1718200033975,0.51,160.06,160.02,2.3121]
[1718200034381,9.2973,160.12,160.07,2.3114]
[1718200034584,9.2973,160.12,160.02,9.2488]
[1718200034585,6.3792,160.12,160.03,6.936]
[1718200034765,8.69,160.12,160.06,2.3115]
[1718200035096,6.3792,160.12,160.05,2.3117]
[1718200035278,2.3113,160.08,160.0,11.5621]
[1718200035470,2.3113,160.08,160.02,2.3121]
[1718200035671,2.3111,160.1,160.01,11.5614]
[1718200035868,2.3111,160.1,160.02,4.6244]
[1718200036062,0.34,160.09,160.05,2.3116]
[1718200036271,2.8211,160.1,160.05,2.3116]
[1718200036470,6.3792,160.12,160.06,2.3114]
[1718200036692,8.69,160.12,160.07,2.3114]
[1718200036891,2.3109,160.11,160.06,2.3115]
[1718200037260,2.3114,160.08,160.03,2.312]
[1718200038870,0.17,160.07,160.05,2.3117]
[1718200039070,0.68,160.09,160.05,2.3117]
[1718200039388,0.68,160.09,159.98,22.503]
[1718200039389,0.17,160.08,159.98,22.503]
[1718200039560,2.3118,160.05,159.98,27.1284]
[1718200039889,2.3118,160.05,160.0,2.3124]
[1718200040096,0.17,160.04,160.0,2.3124]
[1718200040273,0.17,160.04,159.97,6.9385]
[1718200040274,0.17,160.04,160.02,2.3121]
[1718200040480,0.17,160.04,159.97,11.5642]
[1718200040796,0.17,160.04,160.01,2.3123]
[1718200040977,0.34,160.04,160.01,2.3123]
[1718200041302,0.17,160.03,160.01,2.3123]
[1718200041516,2.3115,160.07,160.02,2.3121]
[1718200041694,0.17,160.06,160.02,2.3121]
[1718200041886,0.68,160.06,160.02,2.3121]
[1718200042092,0.68,160.06,159.97,4.6257]
[1718200042291,0.17,160.04,159.95,36.1918]
[1718200042491,0.17,160.04,159.96,11.5651]
[1718200042709,0.17,160.04,160.0,2.3124]
[1718200042912,2.9181,160.08,160.03,2.312]
[1718200043117,2.3114,160.07,160.02,2.3121]
[1718200044225,0.17,160.06,160.02,2.3121]
[1718200044514,0.34,160.06,160.02,2.3121]
[1718200045507,2.9181,160.08,160.04,2.3118]
[1718200045906,2.3115,160.07,160.02,2.3121]
[1718200046820,0.17,160.07,160.03,2.312]
[1718200047115,6.3792,160.12,159.96,0.17]
[1718200047295,2.3109,160.11,160.06,2.3115]
[1718200047494,8.69,160.12,160.07,2.3114]
[1718200047902,2.3109,160.11,160.06,2.3116]
[1718200048102,2.3106,160.13,160.08,2.3112]
[1718200048488,2.3111,160.1,160.05,2.3117]
[1718200049013,16.1754,160.12,160.03,16.2431]
[1718200049323,0.17,160.11,160.03,16.2431]
[1718200049528,2.3111,160.1,160.05,2.3117]
[1718200049735,0.17,160.09,160.05,2.3117]
[1718200049902,0.34,160.09,160.02,6.4799]
[1718200050215,2.3113,160.08,160.03,2.312]
[1718200050421,2.6512,160.09,160.04,2.3119]
[1718200050817,0.34,160.09,160.02,6.9364]
[1718200051126,11.5528,160.14,159.99,16.6197]
[1718200051127,100.0,160.15,159.99,16.6197]
[1718200051303,2.3104,160.15,160.06,4.6232]
[1718200051488,111.5498,160.18,160.03,20.0]
[1718200051489,100.0,160.18,160.1,2.3109]
[1718200051693,2.3104,160.15,160.1,2.3109]
[1718200051901,266.6881272,160.2,160.08,9.2453]
[1718200052105,266.6881272,160.2,160.13,2.3105]
[1718200052330,9.1431,160.2,160.07,15.4933]
[1718200052657,2.3098,160.19,160.14,2.3104]
[1718200053004,2.3098,160.19,160.13,2.3105]
[1718200053202,2.3099,160.18,160.07,15.4933]
[1718200053407,2.3095,160.21,160.15,2.3102]
[1718200053697,2.3095,160.21,160.12,4.6213]
[1718200053928,2.3095,160.21,160.15,2.3102]
[1718200054248,106.9265,160.26,160.17,2.3099]
[1718200054409,2.3092,160.23,160.17,2.3099]
[1718200054608,6.3397,160.27,160.19,4.6194]
[1718200054816,6.3397,160.27,160.22,2.3092]
[1718200055038,6.3397,160.27,160.21,2.3094]
[1718200055253,100.0,160.25,160.16,2.3101]
[1718200055556,100.0,160.25,160.08,26.26]
[1718200055557,2.3097,160.19,160.09,4.6223]
[1718200055710,9.2375,160.22,160.09,4.6223]
[1718200055711,2.3099,160.18,160.12,2.3107]
[1718200055913,2.3098,160.19,160.12,2.3107]
[1718200056136,2.3096,160.2,160.13,2.3105]
[1718200056539,2.9897,160.19,160.13,2.3105]
[1718200056737,2.9897,160.19,160.11,2.3108]
[1718200056738,2.31,160.17,160.11,2.3108]
[1718200056941,0.17,160.16,160.04,26.0032]
[1718200057134,0.17,160.15,160.04,21.2097]
[1718200057330,2.3107,160.13,160.07,2.3113]
[1718200057726,2.3107,160.13,160.06,2.3115]
[1718200058055,0.51,160.15,160.07,2.3114]
[1718200058056,2.3105,160.14,160.07,2.3114]
[1718200058352,2.6506,160.13,160.07,2.3114]
[1718200058554,0.34,160.13,160.08,2.3113]
[1718200058866,0.17,160.15,160.04,21.2097]
[1718200059028,0.51,160.15,160.1,2.311]
[1718200059346,2.4803,160.15,160.09,2.3111]
[1718200059532,0.17,160.15,160.1,2.311]
[1718200060033,0.17,160.16,160.1,2.311]
[1718200060221,2.3104,160.15,160.05,4.6235]
[1718200060421,0.51,160.14,160.05,4.6235]
[1718200060727,2.4801,160.16,160.1,2.3109]
[1718200060933,2.3101,160.16,160.1,2.3109]
[1718200061244,0.17,160.15,160.1,2.3109]
[1718200062344,2.4803,160.15,160.09,2.3111]
[1718200062949,0.34,160.14,160.09,2.3111]
[1718200063146,0.17,160.13,160.09,2.3111]
[1718200063351,0.34,160.13,160.04,21.2097]
[1718200063535,0.34,160.13,160.06,2.3115]
[1718200063536,2.3109,160.11,160.06,2.3115]
[1718200064131,2.3108,160.12,160.07,2.3114]
[1718200064332,2.3108,160.12,160.06,2.3115]
[1718200064528,2.3108,160.12,160.04,15.1078]
[1718200064529,2.3108,160.12,160.07,2.3114]
[1718200065264,0.34,160.13,160.08,2.3112]
[1718200065434,0.17,160.12,160.08,2.3112]
[1718200066434,0.17,160.12,160.07,2.3114]
[1718200067237,2.311,160.11,160.05,2.3116]
[1718200067430,20.0,160.14,160.09,2.3111]
[1718200067753,2.3105,160.14,160.09,2.3111]
[1718200067957,2.3103,160.15,160.09,2.3111]
[1718200068461,2.3104,160.14,160.09,2.3111]
[1718200068753,2.3104,160.15,160.07,4.6229]
[1718200068955,2.3104,160.15,160.09,2.3111]
[1718200069550,22.3102,160.16,160.07,4.6229]
[1718200069757,2.3102,160.16,160.08,4.6226]
[1718200069959,2.3103,160.15,160.06,11.558]
[1718200070153,2.3103,160.15,160.09,2.3111]
[1718200070454,2.3105,160.14,160.09,2.3111]
[1718200070641,4.6199,160.18,160.04,15.1078]
[1718200070642,2.3106,160.13,160.08,2.3112]
[1718200071148,2.3105,160.14,160.09,2.3111]
[1718200071448,2.8203,160.15,160.09,2.3111]
[1718200072363,0.51,160.15,160.09,2.3111]
[1718200072564,2.3104,160.14,160.09,2.3111]
[1718200074162,2.8203,160.15,160.09,2.3111]
[1718200074368,2.6503,160.15,160.06,4.623]
[1718200074661,2.6503,160.15,160.06,11.5578]
[1718200074871,2.6503,160.15,160.1,2.311]
[1718200075062,2.311,160.11,160.06,2.3115]
[1718200075249,2.3106,160.13,160.04,19.7314]
[1718200075556,2.3105,160.14,160.08,2.3113]
[1718200076544,2.3106,160.13,160.08,2.3113]
[1718200077350,2.3105,160.14,160.09,2.3111]
[1718200079274,2.6503,160.15,160.1,2.311]
[1718200080287,2.3105,160.14,160.09,2.3111]
[1718200080644,2.3102,160.16,160.11,2.3108]
[1718200081151,2.3103,160.15,160.07,9.2459]
[1718200081352,2.3104,160.15,160.1,2.311]
[1718200081540,2.3105,160.14,160.09,2.3111]
[1718200081862,2.3105,160.14,160.09,2.311]
[1718200082248,2.3106,160.13,160.08,2.3112]
[1718200082447,2.3107,160.12,160.08,2.3112]
[1718200082644,2.3111,160.1,160.05,2.3116]
[1718200082844,2.3109,160.11,160.06,2.3116]
[1718200083043,6.2988,160.19,160.04,15.1078]
[1718200083044,6.9306,160.16,160.04,22.0435]
[1718200083245,2.3108,160.12,160.07,2.3114]
[1718200083456,2.3108,160.12,160.04,15.1078]
[1718200083659,2.3106,160.13,160.08,2.3112]
[1718200084152,2.3107,160.12,160.07,2.3114]
[1718200085346,2.3107,160.12,160.08,2.3113]
[1718200085544,2.3106,160.13,160.08,2.3113]
[1718200086269,2.3106,160.13,160.05,4.6235]
[1718200086270,2.3106,160.13,160.09,2.3111]
[1718200086856,2.3106,160.13,160.08,2.3112]
[1718200087275,5.3008,160.15,160.09,2.3111]
[1718200087276,2.3105,160.14,160.09,2.3111]
[1718200087458,6.2988,160.19,160.05,22.64]
[1718200087664,2.3099,160.18,160.13,2.3105]
[1718200088064,2.3099,160.18,160.1,20.7989]
[1718200088258,2.31,160.17,160.12,2.3107]
[1718200088565,2.3107,160.12,160.05,22.47]
[1718200088765,4.6208,160.15,160.04,15.1078]
[1718200088982,2.3107,160.13,160.08,2.3112]
[1718200089278,4.6208,160.15,160.1,2.3109]
[1718200089279,2.3104,160.15,160.1,2.3109]
[1718200090370,2.3104,160.15,160.11,2.3109]
[1718200091051,20.1576,160.19,160.12,2.3107]
[1718200091284,2.31,160.17,160.12,2.3107]
[1718200091780,2.3101,160.16,160.12,2.3107]
[1718200092765,0.34,160.18,160.13,2.3105]
[1718200092964,2.3101,160.16,160.12,2.3107]
[1718200093976,2.3103,160.15,160.11,2.3108]
[1718200094179,2.3102,160.16,160.11,2.3108]
[1718200094379,2.3103,160.15,160.11,2.3108]
[1718200094584,0.34,160.18,160.11,2.3108]
[1718200094768,2.3104,160.15,160.1,2.3109]
[1718200095084,2.3105,160.14,160.1,2.3109]
[1718200095276,2.3106,160.13,160.09,2.3111]
[1718200095580,2.3109,160.11,160.07,2.3114]
[1718200096061,2.3108,160.12,160.07,2.3114]
[1718200096263,2.3108,160.12,160.04,19.7314]
[1718200096264,2.3106,160.13,160.05,16.1822]
[1718200096589,2.3106,160.13,160.09,2.3111]
[1718200097573,2.3107,160.12,160.08,2.3112]
[1718200097773,2.3107,160.12,160.05,4.6233]
[1718200097774,2.3109,160.11,160.07,2.3114]
[1718200097973,2.311,160.1,160.06,2.3115]
[1718200098786,2.3109,160.11,160.06,2.3115]
[1718200099086,2.3109,160.11,160.07,2.3114]
[1718200100487,2.3109,160.11,160.04,19.7315]
[1718200100682,2.3108,160.12,160.07,2.3114]
[1718200101183,0.34,160.13,160.02,29.4065]
[1718200101364,2.3109,160.11,160.06,2.3115]
[1718200101778,2.3109,160.11,160.07,2.3114]
[1718200102083,2.3109,160.11,160.06,2.3115]
[1718200102284,2.311,160.1,160.06,2.3115]
[1718200102976,0.34,160.12,160.07,2.3114]
[1718200103188,2.4809,160.11,160.06,2.3115]
[1718200103888,0.17,160.12,160.06,11.5578]
[1718200104393,0.17,160.12,160.09,2.3111]
[1718200104590,2.6506,160.13,160.06,11.5578]
[1718200104806,0.17,160.13,160.06,4.623]
[1718200105096,5.3986,160.14,160.1,2.311]
[1718200105308,2.9181,160.14,160.12,2.3107]
[1718200105472,5.2285,160.14,160.1,2.3109]
[1718200105998,5.2285,160.14,160.09,2.3111]
[1718200106301,2.3106,160.13,160.09,2.3111]
[1718200106497,2.9181,160.14,160.07,2.3114]
[1718200106690,0.17,160.12,160.03,4.624]
[1718200106898,0.17,160.12,160.06,2.3115]
[1718200107076,2.3109,160.11,160.07,2.3114]
[1718200107810,2.311,160.1,160.06,2.3116]
[1718200108094,0.17,160.12,160.06,2.3116]
[1718200108095,2.3109,160.11,160.06,2.3116]
[1718200108803,2.311,160.1,160.06,2.3116]
[1718200109101,0.17,160.11,160.04,2.3118]
[1718200109311,2.3114,160.08,160.04,2.3118]
[1718200109972,0.17,160.11,159.97,2.499892]
[1718200109973,2.3117,160.06,160.02,2.3121]
[1718200110204,2.3116,160.06,160.02,2.3121]
[1718200110384,10.6994,160.05,159.97,4.93595121]
[1718200110692,4.794,160.04,159.96,2.313]
[1718200110886,2.3125,160.0,159.93,16.1488]
[1718200111196,0.17,160.02,159.93,16.1488]
[1718200111403,2.3125,160.0,159.93,16.1488]
[1718200111578,2.3125,160.0,159.95,2.3131]
[1718200112102,0.51,160.02,159.93,30.44232912]
[1718200112302,0.51,160.02,159.98,2.3126]
[1718200112995,2.8222,160.02,159.98,2.3126]
[1718200113195,0.51,160.02,159.95,2.3131]
[1718200113381,2.3125,160.0,159.95,2.3131]
[1718200113787,2.3125,160.0,159.93,5.03992912]
[1718200113982,2.8222,160.02,159.94,4.6267]
[1718200114182,2.8222,160.02,159.96,2.313]
[1718200114183,0.51,160.02,159.96,2.313]
[1718200114594,0.51,160.02,159.95,2.3131]
[1718200114595,2.3125,160.0,159.95,2.3131]
[1718200114889,2.3127,159.98,159.93,2.3133]
[1718200115091,2.4829,159.97,159.92,5.02607063]
[1718200115403,2.313,159.96,159.92,2.3135]
[1718200115903,2.4829,159.97,159.92,2.3135]
[1718200116079,0.34,159.97,159.87,4.6287]
[1718200116276,0.34,159.97,159.9,2.3138]
[1718200116277,2.3133,159.94,159.9,2.3138]
[1718200116717,0.17,159.96,159.9,2.3138]
[1718200116885,0.17,159.95,159.9,2.3138]
[1718200117220,0.17,159.95,159.86,22.4325]
[1718200117221,0.51,159.95,159.86,15.4891]
[1718200117393,0.51,159.95,159.88,4.6282]
[1718200117592,2.8232,159.95,159.9,2.3138]
[1718200118311,0.34,159.95,159.87,9.2572]
[1718200118489,2.6533,159.95,159.9,2.3139]
[1718200118818,0.17,159.92,159.84,9.259]
[1718200118988,0.34,159.93,159.83,4.6298]
[1718200119310,2.314,159.9,159.81,19.9637]
[1718200119509,2.314,159.9,159.83,2.3148]
[1718200119707,2.314,159.9,159.85,2.3146]
[1718200120096,2.6538,159.91,159.86,2.3145]
[1718200120290,2.3139,159.9,159.85,2.3146]
[1718200120711,0.17,159.91,159.81,15.3333]
[1718200120919,2.3136,159.92,159.85,4.6292]
[1718200121095,0.17,159.93,159.88,2.3142]
[1718200121096,2.8235,159.93,159.88,2.3142]
[1718200121297,2.9935,159.93,159.88,2.3142]
[1718200122311,2.3135,159.93,159.88,2.3142]
[1718200122524,9.4795,159.94,159.86,6.9434]
[1718200122829,9.4795,159.94,159.87,4.6287]
[1718200123614,9.4795,159.94,159.91,2.3137]
[1718200124203,2.9181,159.94,159.91,2.3137]
[1718200124411,2.313,159.97,159.89,4.628]
[1718200124606,11.8294,159.98,159.9,4.6278]
[1718200124926,9.5166,159.98,159.94,2.3132]
[1718200125292,9.5166,159.98,159.95,2.3132]
[1718200125807,9.5166,159.98,159.96,2.3129]
[1718200126119,2.9181,159.98,159.95,2.3131]
[1718200126920,2.3126,159.99,159.95,2.3131]
[1718200127116,2.3127,159.98,159.94,2.3133]
[1718200128210,2.3126,159.99,159.94,2.3133]
[1718200128394,2.3127,159.98,159.94,2.3133]
[1718200129015,0.17,159.99,159.95,2.3131]
[1718200129222,2.8227,159.99,159.94,2.3133]
[1718200129418,0.17,159.98,159.94,2.3133]
[1718200130010,2.4827,159.98,159.94,2.3133]
[1718200130220,2.3132,159.95,159.9,2.3139]
[1718200130529,2.3132,159.95,159.88,15.8291]
[1718200130702,2.3131,159.96,159.91,2.3137]
[1718200130902,4.7957,159.98,159.92,2.3135]
[1718200130903,2.4829,159.97,159.92,2.3135]
[1718200131211,2.4831,159.96,159.91,2.3137]
[1718200131414,2.3135,159.93,159.86,4.6289]
[1718200131608,9.7447,159.94,159.84,19.8974]
[1718200131921,2.3141,159.89,159.83,7.448]
[1718200132121,2.3141,159.89,159.85,2.3145]
[1718200132625,2.3141,159.89,159.85,2.3146]
[1718200132828,0.17,159.89,159.8,15.4239]
[1718200133009,2.3145,159.87,159.83,2.3149]
[1718200133218,0.51,159.89,159.84,2.3147]
[1718200133525,0.51,159.89,159.85,2.3146]
[1718200133526,0.17,159.88,159.85,2.3146]
[1718200133727,0.34,159.88,159.85,2.3146]
[1718200134142,0.17,159.88,159.86,2.3144]
[1718200134444,0.17,159.9,159.86,2.3144]
[1718200134617,2.9939,159.9,159.86,2.3144]
[1718200135006,2.3141,159.89,159.82,4.63]
[1718200135244,2.3141,159.89,159.84,2.3147]
[1718200135816,2.9939,159.9,159.85,2.3145]
[1718200137132,0.34,159.9,159.85,2.3145]
[1718200137316,0.17,159.9,159.86,2.3144]
[1718200137508,2.4839,159.9,159.86,2.3144]
[1718200137707,2.4839,159.9,159.83,4.6297]
[1718200137910,0.17,159.9,159.86,2.3144]
[1718200138135,0.17,159.9,159.87,2.3143]
[1718200138736,2.4839,159.9,159.86,2.3145]
[1718200139032,9.4047,159.94,159.84,16.2032]
[1718200139235,2.3136,159.92,159.88,2.3141]
[1718200139413,2.3135,159.93,159.88,2.3141]
[1718200139613,9.4047,159.94,159.87,2.3143]
[1718200139614,2.3136,159.92,159.87,2.3143]
[1718200139808,2.3139,159.91,159.86,2.3144]
[1718200140004,2.3136,159.93,159.83,9.2594]
[1718200140235,9.4047,159.94,159.87,4.6287]
[1718200140535,9.4047,159.94,159.9,2.3139]
[1718200140536,5.2315,159.94,159.9,2.3139]
[1718200140722,2.3137,159.92,159.87,2.3143]
[1718200141106,2.3137,159.92,159.84,21.1177]
[1718200141107,2.3137,159.92,159.88,2.3142]
[1718200141331,2.9181,159.94,159.89,2.314]
[1718200141332,2.3135,159.93,159.89,2.314]
[1718200141521,2.9181,159.94,159.88,4.6284]
[1718200141719,2.9181,159.94,159.86,13.8868]
[1718200141720,0.17,159.93,159.86,13.8868]
[1718200141919,2.9936,159.93,159.88,2.3141]
[1718200142128,2.3137,159.92,159.88,2.3141]
[1718200142726,0.17,159.91,159.83,9.2596]
[1718200142926,2.3138,159.91,159.87,2.3143]
[1718200143116,0.17,159.9,159.87,2.3143]
[1718200143310,2.654,159.9,159.85,2.3145]
[1718200143543,0.17,159.89,159.86,2.3145]
[1718200143721,2.484,159.89,159.85,2.3146]
[1718200144123,2.484,159.89,159.84,2.3147]
[1718200144531,0.34,159.88,159.84,2.3147]
[1718200145226,2.3144,159.87,159.83,2.3148]
[1718200145554,0.17,159.87,159.8,9.2611]
[1718200145721,0.17,159.87,159.81,4.6303]
[1718200145919,2.4844,159.87,159.83,2.3149]
[1718200146127,0.17,159.87,159.85,2.3146]
[1718200147013,0.17,159.87,159.84,2.3147]
[1718200147220,2.4844,159.87,159.83,2.3148]
[1718200147420,2.4845,159.86,159.78,4.6312]
[1718200147626,2.3145,159.86,159.82,2.315]
[1718200147922,0.17,159.87,159.79,4.631]
[1718200148129,2.3145,159.86,159.82,2.315]
[1718200148319,2.6544,159.87,159.83,2.3149]
[1718200148518,0.17,159.86,159.83,2.3149]
[1718200148715,2.6545,159.86,159.82,2.315]
[1718200149149,0.34,159.86,159.83,2.3149]
[1718200149342,2.6545,159.86,159.82,2.315]
[1718200149724,2.315,159.83,159.79,2.3154]
[1718200149945,0.34,159.82,159.79,2.3154]
[1718200150221,0.34,159.82,159.8,2.3153]
[1718200150447,0.17,159.82,159.79,2.3155]
[1718200150760,0.17,159.82,159.77,4.6315]
[1718200151051,2.6549,159.83,159.79,2.3154]
[1718200151218,0.34,159.83,159.8,2.3153]
[1718200151418,0.17,159.83,159.77,11.5789]
[1718200151645,2.6548,159.84,159.77,4.6315]
[1718200151845,2.4849,159.83,159.79,2.3154]
[1718200152536,2.8252,159.82,159.75,13.8964]
[1718200152749,0.34,159.82,159.79,2.3155]
[1718200153332,2.6551,159.82,159.78,2.3156]
[1718200153650,0.34,159.81,159.78,2.3156]
[1718200154033,0.17,159.82,159.79,2.3154]
[1718200154242,0.34,159.82,159.79,2.3154]
[1718200154650,0.34,159.81,159.69,2.8252]
[1718200154969,2.3159,159.76,159.71,2.3166]
[1718200155151,2.3159,159.76,159.72,2.3165]
[1718200155461,2.3159,159.76,159.71,2.3166]
[1718200155658,2.486,159.76,159.69,4.6337]
[1718200155837,2.3161,159.75,159.71,2.3165]
[1718200156944,0.17,159.76,159.72,2.3164]
[1718200157144,2.826,159.76,159.71,2.3166]
[1718200157461,2.4861,159.75,159.7,2.3168]
[1718200157774,2.4861,159.75,159.67,4.6344]
[1718200157775,2.6563,159.74,159.67,4.6344]
[1718200157964,0.17,159.73,159.67,4.6344]
[1718200158145,0.17,159.73,159.69,2.3169]
[1718200158845,0.34,159.73,159.68,2.317]
[1718200159039,0.34,159.72,159.66,2.3174]
[1718200159245,2.3169,159.7,159.66,2.3173]
[1718200159458,2.6567,159.71,159.66,2.3173]
[1718200159964,2.6567,159.71,159.67,2.3172]
[1718200160351,2.6567,159.71,159.65,2.3175]
[1718200160352,0.34,159.71,159.65,2.3175]
[1718200160554,9.1451,159.7,159.61,9.2725]
[1718200160755,2.4871,159.68,159.61,9.2725]
[1718200160959,0.17,159.67,159.61,9.2725]
[1718200161366,2.4873,159.67,159.63,2.3177]
[1718200161552,2.6573,159.67,159.6,27.2164]
[1718200161755,0.34,159.67,159.63,2.3177]
[1718200162268,2.317,159.69,159.61,4.6361]
[1718200162569,0.17,159.67,159.63,2.3177]
[1718200162861,2.3167,159.71,159.63,6.9535]
[1718200163061,9.0226,159.74,159.69,2.3168]
[1718200163259,9.0226,159.74,159.64,4.6353]
[1718200163260,2.3166,159.71,159.64,4.6353]
[1718200163457,109.0226,159.74,159.65,2.3175]
[1718200163663,4.6331,159.72,159.65,2.3175]
[1718200163866,2.317,159.69,159.65,2.3175]
[1718200164650,0.17,159.68,159.65,2.3175]
[1718200165677,136.476,159.76,159.68,2.317]